bitfinex-derivatives/quotes_SOLF0:USTF0_20240911
["timestamp","ask_amount","ask_price","bid_price","bid_amount"]
[1726067026166,4.0325,129.38,129.34,3.8663]
[1726067026665,2.6296,129.38,129.34,3.8663]
[1726067026968,5.30922529,129.41,129.31,32.6]
[1726067027166,2.7589,129.43,129.36,32.6]
[1726067027374,3.8641,129.42,129.36,32.6]
[1726067027570,2.7589,129.43,129.34,32.6]
[1726067027875,32.6,129.42,129.31,32.6]
[1726067028472,36.49559447,129.42,129.34,3.8662]
[1726067028861,3.8648,129.39,129.31,32.6]
[1726067029061,3.8648,129.39,129.35,3.8658]
[1726067030074,3.8652,129.38,129.34,3.8662]
[1726067030265,32.6,129.4,129.28,32.6]
[1726067030464,3.8654,129.38,129.33,3.8664]
[1726067030662,32.6,129.4,129.33,3.8664]
[1726067031369,32.6,129.4,129.34,3.8662]
[1726067031370,3.8654,129.38,129.34,3.8662]
[1726067032175,3.8655,129.37,129.33,3.8665]
[1726067032470,32.6,129.4,129.28,36.50844122]
[1726067032668,3.8656,129.37,129.32,3.8667]
[1726067032873,32.6,129.4,129.28,36.50844122]
[1726067033064,1.3248,129.39,129.28,36.50844122]
[1726067033476,1.3248,129.39,129.32,3.8667]
[1726067033477,3.8658,129.36,129.32,3.8667]
[1726067033865,1.3248,129.39,129.28,36.50844122]
[1726067034472,3.8656,129.37,129.28,36.50844122]
[1726067034667,1.3248,129.39,129.28,36.50844122]
[1726067034873,3.8658,129.36,129.28,36.50844122]
[1726067035295,1.3248,129.39,129.28,36.50844122]
[1726067035472,3.866,129.35,129.32,3.8667]
[1726067036279,3.8658,129.36,129.32,3.8667]
[1726067036477,1.3248,129.39,129.26,32.6]
[1726067036683,32.6,129.37,129.26,36.45692084]
[1726067036871,2.6673,129.36,129.26,36.45692084]
[1726067037183,32.6,129.35,129.24,32.6]
[1726067037485,1.3248,129.39,129.34,3.8661]
[1726067037869,1.3248,129.39,129.3,32.6]
[1726067038472,3.8656,129.37,129.3,32.6]
[1726067038975,1.3248,129.39,129.3,32.6]
[1726067039175,3.8654,129.38,129.3,32.6]
[1726067039381,1.3248,129.39,129.3,32.6]
[1726067039978,3.8655,129.37,129.34,3.8661]
[1726067040180,1.3248,129.39,129.3,32.6]
[1726067040376,1.3248,129.39,129.32,32.6]
[1726067040581,3.8656,129.37,129.3,32.6]
[1726067040880,3.89559447,129.42,129.26,7.7373]
[1726067040881,3.89559447,129.42,129.32,32.6]
[1726067041083,3.8639,129.42,129.36,32.6]
[1726067041379,3.95863248,129.43,129.34,32.6]
[1726067041583,3.8643,129.41,129.37,3.8652]
[1726067041887,28.46959546,129.57,129.35,7.732]
[1726067042187,3.8650423,129.56,129.45,32.6]
[1726067042379,3.8597,129.57,129.45,36.51531802]
[1726067042623,3.86156167,129.58,129.45,36.51531802]
[1726067042778,1.24994123,129.57,129.47,32.6]
[1726067043081,32.6,129.61,129.49,32.6]
[1726067043082,3.85764941,129.56,129.49,32.6]
[1726067043585,32.6,129.61,129.49,32.6]
[1726067043983,1.24946444,129.6,129.49,32.6]
[1726067044184,36.51481694,129.61,129.49,36.39739175]
[1726067044718,3.8588,129.6,129.53,3.8604]
[1726067044984,7.79795177,129.6,129.53,3.8604]
[1726067046379,3.93915177,129.6,129.49,32.6]
[1726067046574,32.6,129.61,129.49,32.6]
[1726067046986,2.7873,129.6,129.49,32.6]
[1726067047178,36.40114617,129.61,129.49,32.6]
[1726067047382,3.80114617,129.61,129.52,32.6]
[1726067047586,2.856,129.62,129.52,32.6]
[1726067047983,3.8591,129.59,129.53,3.8604]
[1726067048193,39.2428576,129.62,129.49,32.6]
[1726067048921,39.2428576,129.62,129.49,36.42924998]
[1726067049087,32.6,129.6,129.47,32.6]
[1726067049688,3.8597,129.57,129.49,32.6]
[1726067050489,3.8597,129.56,129.51,3.861]
[1726067050690,32.6,129.6,129.47,32.6]
[1726067051188,3.8597,129.57,129.47,32.6]
[1726067051587,3.8597,129.57,129.51,3.861]
[1726067051884,32.6,129.58,129.47,32.6]
[1726067052486,3.86,129.56,129.5,3.8612]
[1726067053101,3.86,129.56,129.51,3.8612]
[1726067054589,32.6,129.69,129.54,32.6]
[1726067054795,1.37,129.68,129.6,32.6]
[1726067054990,3.8332274,129.67,129.63,3.8576]
[1726067055394,1.37,129.68,129.63,3.8576]
[1726067055595,1.37,129.68,129.6,32.6]
[1726067056090,3.8565,129.67,129.62,3.8577]
[1726067056392,5.2476159,129.68,129.6,32.6]
[1726067056393,1.37,129.68,129.6,32.6]
[1726067056591,3.857,129.66,129.61,3.8582]
[1726067056790,3.76687097,129.66,129.6,32.6]
[1726067057003,1.37,129.68,129.54,32.6]
[1726067057004,1.37,129.68,129.58,32.6]
[1726067057190,5.2132734,129.68,129.58,32.6]
[1726067057698,3.8571,129.65,129.6,3.8584]
[1726067058090,32.6,129.68,129.58,32.6]
[1726067058334,3.84674623,129.7,129.63,32.6]
[1726067058497,32.6,129.76,129.63,32.6]
[1726067058689,3.8542,129.75,129.69,3.8556]
[1726067059189,3.91075129,129.76,129.7,3.8553]
[1726067059394,32.6,129.78,129.7,3.8553]
[1726067059595,32.6,129.78,129.66,32.6]
[1726067060498,3.8545,129.74,129.63,32.6]
[1726067060699,3.91152279,129.74,129.63,32.6]
[1726067060891,3.8558,129.7,129.64,3.8571]
[1726067061092,32.6,129.74,129.61,32.6]
[1726067061093,3.76686588,129.69,129.61,32.6]
[1726067061288,32.6,129.74,129.61,32.6]
[1726067061890,36.49793642,129.74,129.61,32.6]
[1726067062097,1.3391,129.73,129.61,32.6]
[1726067062401,1.3391,129.73,129.63,32.6]
[1726067062707,2.7084,129.72,129.63,52.93]
[1726067062896,6.5636,129.72,129.66,3.8565]
[1726067063099,3.89793642,129.74,129.66,52.93]
[1726067063304,1.3655,129.75,129.68,52.93]
[1726067063501,3.80843511,129.74,129.68,52.93]
[1726067064304,7.66283511,129.74,129.69,3.8557]
[1726067064495,3.80843511,129.74,129.68,52.93]
[1726067065102,7.66283511,129.74,129.69,3.8557]
[1726067065404,3.80843511,129.74,129.68,52.93]
[1726067065643,1.3655,129.75,129.68,52.93]
[1726067065805,1.3782,129.74,129.65,52.93]
[1726067066306,3.855,129.73,129.67,3.8562]
[1726067066503,1.3782,129.74,129.67,3.8562]
[1726067066701,1.3782,129.74,129.66,3.8566]
[1726067066908,1.3782,129.74,129.63,52.93]
[1726067067906,54.3082,129.74,129.63,52.93]
[1726067068311,8.05277499,129.83,129.61,7.7165]
[1726067068616,55.6748,129.82,129.69,52.93]
[1726067068819,52.93,129.8,129.69,52.93]
[1726067069421,3.854,129.76,129.71,3.8553]
[1726067069614,3.77169107,129.75,129.71,3.8553]
[1726067069841,3.854,129.76,129.69,52.93]
[1726067070013,52.93,129.8,129.69,52.93]
[1726067070214,52.93,129.8,129.66,52.93]
[1726067070419,3.8544,129.75,129.69,3.8556]
[1726067070620,3.8544,129.75,129.66,52.93]
[1726067070621,3.94067641,129.74,129.66,52.93]
[1726067071017,52.93,129.8,129.66,52.93]
[1726067071018,3.8542,129.75,129.66,52.93]
[1726067071218,3.91135475,129.74,129.66,52.93]
[1726067071823,3.8544,129.74,129.66,52.93]
[1726067072010,3.89913283,129.73,129.66,52.93]
[1726067072509,52.93,129.8,129.7,3.8556]
[1726067072510,3.8542,129.75,129.7,3.8556]
[1726067073121,3.8544,129.74,129.69,3.8558]
[1726067073821,3.91532941,129.73,129.69,3.8558]
[1726067074023,52.93,129.8,129.69,3.8558]
[1726067074322,3.8546,129.74,129.69,3.8558]
[1726067074519,3.91841447,129.73,129.69,3.8558]
[1726067075718,7.77311447,129.73,129.66,52.93]
[1726067075926,3.91841447,129.73,129.66,52.93]
[1726067076126,52.93,129.8,129.69,3.8557]
[1726067076623,52.93,129.8,129.7,52.93]
[1726067076624,3.8545,129.74,129.7,52.93]
[1726067076824,3.86742356,129.73,129.7,52.93]
[1726067077517,52.93,129.8,129.7,52.93]
[1726067077518,7.71005369,129.75,129.7,56.7855]
[1726067077721,55.6748,129.82,129.7,52.93]
[1726067078714,3.8544,129.74,129.68,52.93]
[1726067078919,3.90629595,129.74,129.65,52.93]
[1726067079119,52.93,129.77,129.66,3.8566]
[1726067079350,2.7087,129.73,129.63,52.93]
[1726067079515,6.54170709,129.73,129.63,52.93]
[1726067079719,3.8562,129.68,129.61,52.93]
[1726067080115,59.47170709,129.73,129.61,52.93]
[1726067080913,59.47170709,129.73,129.62,3.8578]
[1726067081119,59.47170709,129.73,129.61,52.93]
[1726067081327,3.8564,129.68,129.63,3.8575]
[1726067082220,58.12110709,129.73,129.63,3.8575]
[1726067082531,52.93,129.85,129.72,52.93]
[1726067082725,54.2413,129.85,129.72,56.6959039]
[1726067082926,54.2413,129.85,129.76,3.8538]
[1726067083224,54.2413,129.85,129.72,56.6959039]
[1726067083428,3.8519,129.83,129.77,3.8533]
[1726067083919,1.3113,129.85,129.77,52.93]
[1726067084125,3.86428578,129.86,129.79,52.93]
[1726067084327,1.3548,129.89,129.79,52.93]
[1726067084632,1.3548,129.89,129.72,56.6959039]
[1726067084633,54.2848,129.89,129.77,52.93]
[1726067085017,3.8507,129.87,129.77,52.93]
[1726067085420,1.3548,129.89,129.77,52.93]
[1726067085625,3.8505,129.87,129.81,3.8521]
[1726067086430,56.7302411,129.93,129.72,56.6959039]
[1726067086431,52.93,129.95,129.84,52.93]
[1726067086727,52.93,129.92,129.81,52.93]
[1726067086928,56.71524518,129.92,129.81,52.93]
[1726067087605,56.71524518,129.92,129.86,3.8507]
[1726067088020,56.71524518,129.92,129.81,52.93]
[1726067088224,56.71524518,129.92,129.85,3.8508]
[1726067088826,60.56444518,129.92,129.84,3.8514]
[1726067089126,28.46959546,130.11,129.79,52.93]
[1726067089322,52.93,130.09,129.95,52.93]
[1726067089727,3.8454,130.05,129.98,3.847]
[1726067090326,3.8454,130.05,129.86,1.2962]
[1726067090327,52.93,130.02,129.86,1.2962]
[1726067090526,52.93,129.99,129.87,52.93]
[1726067091533,3.8478,129.97,129.9,3.8495]
[1726067091780,7.67567362,129.97,129.9,3.8495]
[1726067092026,7.67567362,129.97,129.87,52.93]
[1726067092238,3.848,129.96,129.9,3.8494]
[1726067092627,52.93,129.99,129.88,3.8502]
[1726067092831,52.93,129.97,129.84,52.93]
[1726067093027,1.3948,129.96,129.84,52.93]
[1726067093533,3.8492,129.92,129.84,52.93]
[1726067093727,1.3948,129.96,129.84,52.93]
[1726067094030,3.8492,129.92,129.84,52.93]
[1726067094735,2.7956,129.95,129.84,52.93]
[1726067095632,3.8496,129.91,129.84,56.7812]
[1726067095951,2.7956,129.95,129.84,52.93]
[1726067096232,3.8491,129.92,129.85,3.8508]
[1726067096428,3.8491,129.92,129.84,32.57]
[1726067096821,3.8491,129.92,129.85,3.8509]
[1726067097033,2.7956,129.95,129.86,32.57]
[1726067097234,2.7956,129.95,129.88,32.57]
[1726067097438,1.41,129.95,129.88,32.57]
[1726067097634,1.41,129.95,129.81,1.2962]
[1726067097635,3.82594793,129.97,129.91,32.57]
[1726067097830,2.747,130.0,129.91,32.57]
[1726067098046,3.8473,129.98,129.91,32.57]
[1726067098334,1.3396,130.04,129.91,32.57]
[1726067098532,3.8466,130.01,129.95,3.8481]
[1726067099834,1.354,130.03,129.9,32.57]
[1726067099835,3.847,129.99,129.9,32.57]
[1726067100033,32.57,130.01,129.9,32.57]
[1726067100243,52.84,130.08,129.95,52.84]
[1726067100535,52.84,130.06,129.93,52.84]
[1726067100738,52.84,130.06,129.94,3.80039539]
[1726067100739,56.73504936,130.06,129.94,3.80039539]
[1726067101634,52.84,130.08,129.97,52.84]
[1726067101941,3.8448,130.07,130.01,3.8462]
[1726067102238,3.81847968,130.07,129.98,1.3255]
[1726067102428,52.84,130.08,129.98,1.3255]
[1726067102633,56.67425534,130.08,129.98,1.3255]
[1726067102829,52.84,130.06,129.95,52.84]
[1726067103634,60.61641795,130.06,129.95,52.84]
[1726067103833,56.77121795,130.06,129.95,52.84]
[1726067104227,3.93121795,130.06,129.95,52.84]
[1726067104430,2.6817,130.11,129.95,52.84]
[1726067104431,52.84,130.09,129.95,52.84]
[1726067104636,52.84,130.09,129.97,52.84]
[1726067104831,52.84,130.1,129.97,52.84]
[1726067106029,52.84,130.08,129.99,3.8469]
[1726067106430,3.92960454,130.11,129.95,52.84]
[1726067106638,55.5258,130.1,129.97,52.84]
[1726067106826,55.5258,130.1,129.98,1.3545]
[1726067107466,3.8448,130.07,129.98,1.3545]
[1726067107641,55.5258,130.1,129.98,1.3545]
[1726067108530,3.8445,130.08,129.98,1.3545]
[1726067108730,55.5258,130.1,129.98,2.6486]
[1726067109133,3.8449,130.07,130.01,3.8462]
[1726067109943,3.8449,130.06,130.01,3.8462]
[1726067110134,55.5258,130.1,130.01,3.8462]
[1726067110596,8.03245296,130.17,130.0,52.84]
[1726067110732,8.03245296,130.17,129.98,2.6486]
[1726067110733,52.84,130.14,130.02,52.84]
[1726067111138,3.9901,130.15,130.04,52.84]
[1726067112040,3.9901,130.15,130.05,1.3341]
[1726067112543,52.84,130.14,130.05,1.3341]
[1726067112745,3.8439,130.1,130.05,1.3341]
[1726067113138,3.8439,130.1,130.04,3.8452]
[1726067113139,52.84,130.14,130.04,3.8452]
[1726067113534,52.84,130.14,130.05,3.845]
[1726067113745,52.84,130.14,130.01,52.84]
[1726067113939,52.84,130.09,130.02,3.8459]
[1726067114144,56.67730676,130.09,130.02,3.8459]
[1726067114450,56.67730676,130.09,130.0,1.3341]
[1726067114451,56.67730676,130.09,130.01,3.8462]
[1726067114949,1.3815,130.08,130.01,3.8462]
[1726067115446,3.8451,130.06,130.01,3.8462]
[1726067115649,1.3815,130.08,130.0,1.3341]
[1726067116244,3.8454,130.05,130.0,1.3341]
[1726067116444,3.8454,130.05,130.0,5.1807]
[1726067117541,3.845,130.06,130.0,1.3341]
[1726067117742,2.8063,130.08,130.0,1.3341]
[1726067117942,1.3815,130.08,130.0,1.3341]
[1726067118138,52.84,130.13,130.01,52.84]
[1726067118850,3.8439,130.1,130.05,3.8451]
[1726067119046,52.84,130.13,130.01,52.84]
[1726067119252,3.8439,130.1,130.01,52.84]
[1726067119751,52.84,130.13,130.01,52.84]
[1726067120249,3.844,130.09,130.04,3.8453]
[1726067120552,35.2576,130.14,130.02,32.48]
[1726067120747,35.2576,130.14,130.04,3.8453]
[1726067121149,35.2576,130.14,130.02,32.48]
[1726067121350,3.8445,130.08,130.02,36.3259]
[1726067121652,3.85337456,130.08,130.02,32.48]
[1726067121949,3.8444,130.08,130.0,33.8141]
[1726067122153,7.77356478,130.08,130.0,33.8141]
[1726067122356,3.8444,130.08,130.02,3.8459]
[1726067122651,3.90377313,130.08,130.0,1.3341]
[1726067122843,32.48,130.09,130.0,1.3341]
[1726067122844,5.2305,130.07,130.0,1.3341]
[1726067123045,1.3857,130.07,130.0,1.3341]
[1726067123245,3.85068151,130.08,130.0,1.3341]
[1726067123446,3.8441,130.09,130.0,1.3341]
[1726067123651,3.76594768,130.08,130.0,1.3341]
[1726067123858,1.3637,130.11,130.0,1.3341]
[1726067124049,3.8445,130.08,130.03,3.8456]
[1726067124249,7.64930758,130.08,130.03,3.8456]
[1726067124449,7.64910758,130.08,130.03,3.8456]
[1726067124953,7.64910758,130.08,130.01,32.48]
[1726067124954,5.2073,130.11,130.04,3.8455]
[1726067125209,5.2073,130.11,130.01,32.48]
[1726067125351,1.3637,130.11,130.01,32.48]
[1726067125547,3.8439,130.1,130.01,32.48]
[1726067125851,1.3637,130.11,130.01,32.48]
[1726067126547,3.8441,130.09,130.04,3.8455]
[1726067126859,3.79105527,130.09,130.0,1.3341]
[1726067127044,33.8437,130.11,130.0,1.3341]
[1726067127045,3.8444,130.08,130.0,1.3341]
[1726067127300,3.76374274,130.08,130.0,1.3341]
[1726067127453,32.48,130.09,130.0,1.3341]
[1726067127646,1.3473,130.08,130.0,1.3341]
[1726067128158,3.8447,130.07,130.0,1.3341]
[1726067128559,1.3473,130.08,130.0,1.3341]
[1726067128560,1.3473,130.08,130.01,3.8463]
[1726067128757,3.8451,130.06,130.0,1.3341]
[1726067128952,1.3473,130.08,129.98,5.16769136]
[1726067129155,1.4342,130.07,129.98,5.16769136]
[1726067129383,3.76297338,130.09,129.99,32.48]
[1726067129549,1.3637,130.11,130.02,3.8458]
[1726067129751,3.8445,130.08,130.02,3.8458]
[1726067129950,3.93662929,130.08,129.98,5.21611357]
[1726067130150,1.3637,130.11,129.98,5.21611357]
[1726067130151,32.48,130.07,129.98,1.2941]
[1726067130350,32.48,130.07,129.95,37.74823588]
[1726067130749,32.48,130.07,129.98,3.8473]
[1726067130954,32.48,130.07,129.95,37.74823588]
[1726067131151,32.48,130.05,129.95,1.3793]
[1726067131355,4.1109,130.04,129.92,36.34239681]
[1726067131554,32.48,130.03,129.92,32.48]
[1726067131751,32.48,130.03,129.94,3.8484]
[1726067131950,32.48,130.03,129.9,32.48]
[1726067132352,32.48,130.03,129.9,36.34355068]
[1726067132552,3.8469,130.0,129.9,36.34355068]
[1726067132750,7.726512,130.0,129.9,36.34355068]
[1726067133349,7.726512,130.0,129.95,3.848]
[1726067133567,32.48,130.03,129.9,3.86355068]
[1726067133857,4.1109,130.04,129.96,3.8477]
[1726067134156,4.1109,130.04,129.93,32.48]
[1726067134452,4.1109,130.04,129.96,3.8477]
[1726067134656,4.1109,130.04,129.95,32.48]
[1726067134958,4.1109,130.04,129.98,3.8471]
[1726067135560,4.1109,130.04,129.97,3.8475]
[1726067135769,3.8465,130.01,129.96,1.2985]
[1726067136053,4.1109,130.04,129.96,1.2985]
[1726067136356,4.1109,130.04,129.97,3.8474]
[1726067136947,4.1109,130.04,129.98,3.8472]
[1726067136948,3.8463,130.02,129.98,3.8472]
[1726067137150,2.6767,130.04,129.96,1.2985]
[1726067137354,2.6767,130.04,129.96,33.7785]
[1726067138155,2.6767,130.04,129.96,1.2985]
[1726067139360,3.8462,130.02,129.96,1.2985]
[1726067139659,3.93459888,130.01,129.96,1.2985]
[1726067139858,3.8462,130.02,129.96,1.2985]
[1726067140055,3.8459,130.03,129.98,3.8471]
[1726067140251,3.8459,130.03,129.96,1.2985]
[1726067140757,3.8459,130.03,129.98,3.8472]
[1726067140957,3.8459,130.03,129.96,1.2985]
[1726067141167,3.845,130.06,129.96,5.12112154]
[1726067141459,2.7212,130.08,130.0,32.48]
[1726067141659,2.7212,130.08,129.98,32.48]
[1726067141660,3.8451,130.06,129.98,32.48]
[1726067141853,2.7212,130.08,129.98,32.48]
[1726067142258,3.8453,130.05,129.98,32.48]
[1726067142467,2.7212,130.08,129.98,32.48]
[1726067143860,2.7212,130.08,130.0,32.48]
[1726067144064,1.2977,130.08,130.0,32.48]
[1726067144267,5.2673,130.1,130.02,32.48]
[1726067144458,5.21060901,130.1,130.03,1.3376]
[1726067144764,9.05460901,130.1,130.05,3.845]
[1726067145278,5.21060901,130.1,130.03,1.3376]
[1726067145571,3.844,130.09,130.04,3.8454]
[1726067145756,5.21060901,130.1,130.03,1.3376]
[1726067146157,5.21060901,130.1,130.0,32.48]
[1726067146457,5.21060901,130.1,129.97,6.40746625]
[1726067146458,5.21060901,130.1,129.98,33.8176]
[1726067147159,7.45,130.09,129.98,33.8176]
[1726067147394,39.93,130.09,129.98,33.8176]
[1726067147565,2.7075,130.08,129.98,1.3376]
[1726067147961,2.7075,130.08,129.96,32.48]
[1726067148468,1.408,130.08,129.99,32.48]
[1726067148859,1.408,130.08,130.03,3.8456]
[1726067148860,5.2524,130.08,130.03,3.8456]
[1726067149264,1.408,130.08,130.01,32.48]
[1726067149664,7.45,130.09,130.01,32.48]
[1726067149869,11.294,130.09,130.01,32.48]
[1726067150173,7.45,130.09,130.01,32.48]
[1726067150359,7.45,130.09,130.07,3.8444]
[1726067151061,7.45,130.09,130.08,3.8443]
[1726067151265,7.45,130.09,130.08,36.3243]
[1726067151972,7.45,130.09,130.08,32.48]
[1726067152265,8.69,130.09,130.06,32.48]
[1726067152458,8.69,130.09,130.07,3.8444]
[1726067153267,8.69,130.09,130.06,32.48]
[1726067153968,8.69,130.09,130.07,3.8446]
[1726067154158,8.69,130.09,130.06,32.48]
[1726067154766,8.69,130.09,130.07,3.8444]
[1726067154962,8.69,130.09,130.06,32.48]
[1726067155165,4.18,130.13,130.08,32.48]
[1726067155370,1.4351,130.18,130.12,32.48]
[1726067156271,2.7579,130.22,130.15,32.48]
[1726067156471,1.3973,130.21,130.15,32.48]
[1726067157381,1.3845,130.22,130.15,32.48]
[1726067157874,5.2249,130.22,130.15,32.48]
[1726067158302,2.7192,130.26,130.18,32.48]
[1726067158492,3.8398,130.24,130.18,32.48]
[1726067158795,3.82596673,130.24,130.18,32.48]
[1726067158990,3.8398,130.24,130.18,36.3211]
[1726067159197,2.7192,130.26,130.18,32.48]
[1726067159198,6.47523342,130.26,130.18,32.48]
[1726067159389,2.7192,130.26,130.18,32.48]
[1726067159593,3.92241321,130.25,130.18,32.48]
[1726067160303,2.7192,130.26,130.13,3.873987]
[1726067160597,1.3229,130.24,130.15,32.48]
[1726067161092,1.3229,130.24,130.14,4.36281509]
[1726067161093,3.92510295,130.25,130.19,32.48]
[1726067161293,3.8398,130.24,130.19,32.48]
[1726067161501,3.92510295,130.25,130.19,32.48]
[1726067161699,2.7192,130.26,130.19,32.48]
[1726067162094,33.8029,130.33,130.19,32.48]
[1726067162294,3.9929184,130.32,130.24,32.48]
[1726067162490,3.9929184,130.32,130.2,0.5795]
[1726067162491,2.7509,130.32,130.2,0.5795]
[1726067162693,2.7509,130.32,130.22,32.48]
[1726067163389,2.7509,130.32,130.21,3.8404]
[1726067163390,3.8386,130.28,130.21,3.8404]
[1726067163590,3.76237174,130.28,130.2,33.0595]
[1726067163793,35.2309,130.32,130.2,33.0595]
[1726067163997,3.8382,130.29,130.23,3.8399]
[1726067164296,3.90144849,130.28,130.2,33.0595]
[1726067164603,2.7509,130.32,130.2,33.0595]
[1726067164806,2.7509,130.32,130.2,32.48]
[1726067165491,2.7509,130.32,130.22,32.48]
[1726067166704,3.83401036,130.31,130.24,32.48]
[1726067167003,1.3371,130.32,130.28,3.8382]
[1726067167215,1.3394,130.37,130.29,32.48]
[1726067168102,1.3394,130.37,130.28,3.8384]
[1726067168299,1.3394,130.37,130.28,32.48]
[1726067168689,1.3394,130.37,130.29,3.8379]
[1726067168896,1.3394,130.37,130.28,32.48]
[1726067169094,3.8364,130.35,130.28,32.48]
[1726067169390,3.91972347,130.38,130.3,32.48]
[1726067169595,3.836,130.37,130.31,3.8373]
[1726067169796,6.57175568,130.39,130.3,32.48]
[1726067169998,2.7686,130.39,130.3,32.48]
[1726067170193,6.56330935,130.39,130.3,32.48]
[1726067170798,6.56330935,130.39,130.28,3.84039636]
[1726067170799,6.56330935,130.39,130.28,32.48]
[1726067170996,32.48,130.38,130.26,32.48]
[1726067171198,32.48,130.38,130.22,0.579]
[1726067171199,32.48,130.36,130.23,32.48]
[1726067171414,1.4114,130.35,130.23,32.48]
[1726067171901,1.4114,130.35,130.25,3.839]
[1726067172097,1.4114,130.35,130.23,32.48]
[1726067172098,32.48,130.34,130.23,32.48]
[1726067172404,32.48,130.31,130.19,32.48]
[1726067172602,32.48,130.29,130.17,33.0585]
[1726067172800,32.48,130.27,130.17,33.0585]
[1726067173205,32.48,130.27,130.17,0.5785]
[1726067173606,32.48,130.27,130.15,32.48]
[1726067173804,32.48,130.25,130.13,32.48]
[1726067174007,3.8398,130.24,130.17,3.8414]
[1726067174310,3.8398,130.24,130.15,32.48]
[1726067174311,3.76764527,130.24,130.15,52.75]
[1726067174603,3.8402,130.23,130.15,52.75]
[1726067175208,3.8402,130.22,130.16,3.8417]
[1726067175509,3.88475681,130.24,130.16,3.8417]
[1726067175702,1.4102,130.28,130.19,3.841]
[1726067175902,1.4102,130.28,130.17,52.75]
[1726067176099,1.4102,130.28,130.2,52.75]
[1726067176305,2.6871,130.3,130.24,3.8394]
[1726067176500,2.6871,130.3,130.22,52.75]
[1726067176706,2.6871,130.3,130.24,52.75]
[1726067176707,1.3218,130.3,130.24,52.75]
[1726067177007,5.1598,130.3,130.24,52.75]
[1726067177302,1.3218,130.3,130.19,52.75]
[1726067177705,1.3218,130.3,130.22,52.75]
[1726067178504,3.8384,130.29,130.23,3.8398]
[1726067178726,1.3218,130.3,130.22,52.75]
[1726067179103,3.8382,130.29,130.22,52.75]
[1726067179412,1.3218,130.3,130.22,52.75]
[1726067179908,5.1597,130.3,130.24,3.8394]
[1726067180106,1.3218,130.3,130.22,52.75]
[1726067180808,1.3218,130.3,130.22,3.8401]
[1726067181001,1.3218,130.3,130.19,52.75]
[1726067181208,52.75,130.27,130.16,0.5795]
[1726067181858,3.8383,130.29,130.2,52.75]
[1726067182110,3.89590003,130.32,130.22,52.75]
[1726067182302,54.1608,130.33,130.22,52.75]
[1726067182613,3.7515182,130.32,130.23,0.5775]
[1726067182805,1.4108,130.33,130.23,0.5775]
[1726067183310,54.1608,130.33,130.23,0.5775]
[1726067183511,54.1608,130.33,130.25,3.8391]
[1726067183945,54.1608,130.33,130.23,0.5775]
[1726067184707,1.4108,130.33,130.26,3.8388]
[1726067185213,1.4108,130.33,130.23,0.5775]
[1726067185718,3.8378,130.31,130.23,0.5775]
[1726067185916,1.4108,130.33,130.24,52.75]
[1726067187009,5.248,130.33,130.24,52.75]
[1726067187908,1.3285,130.35,130.24,52.75]